bitfinex-derivatives/quotes_SOLF0:USTF0_20260202
["timestamp","ask_amount","ask_price","bid_price","bid_amount"]
[1769993337888,277.3814,102.43,102.31,9.91248601]
[1769993337889,136.8501,102.4,102.31,30.08130008]
[1769993338385,8.7994,102.38,102.31,38.88570008]
[1769993339087,8.7982,102.4,102.33,30.09720535]
[1769993340287,8.7963,102.42,102.35,30.09881406]
[1769993340585,192.24,102.43,102.36,30.09881406]
[1769993340793,201.0351,102.43,102.36,38.89951406]
[1769993341183,136.729,102.49,102.39,30.09881406]
[1769993341392,136.7004,102.52,102.42,166.91971406]
[1769993341585,136.7033,102.51,102.43,30.09881406]
[1769993341785,145.35248601,102.53,102.39,146.76258601]
[1769993341993,8.7897,102.49,102.41,30.09881406]
[1769993342292,136.7295,102.49,102.41,30.09881406]
[1769993342489,9.91248601,102.49,102.39,30.10264082]
[1769993342685,136.7251,102.5,102.41,30.10264082]
[1769993342881,8.7886,102.51,102.43,38.89734082]
[1769993343287,136.705,102.51,102.43,30.10264082]
[1769993343488,8.7898,102.49,102.43,30.10264082]
[1769993343686,373.725,102.51,102.43,30.10264082]
[1769993343983,136.705,102.51,102.43,30.10264082]
[1769993344188,136.7174,102.5,102.41,30.07196808]
[1769993344390,325.8774,102.5,102.41,30.07196808]
[1769993344580,197.9494,102.5,102.42,38.86746808]
[1769993344781,325.8756,102.5,102.42,38.86746808]
[1769993344985,136.7457,102.48,102.39,30.07196808]
[1769993345585,136.7302,102.49,102.41,30.07196808]
[1769993346292,374.1902,102.49,102.41,30.07196808]
[1769993346689,136.7425,102.48,102.41,30.07196808]
[1769993347194,136.7561,102.47,102.38,38.86062686]
[1769993347396,8.7933,102.45,102.38,38.86062686]
[1769993347792,136.7561,102.47,102.38,38.86062686]
[1769993347989,8.792,102.47,102.39,38.8598157]
[1769993348394,8.7923,102.46,102.39,38.8598157]
[1769993349789,8.7923,102.46,102.39,30.0617157]
[1769993350192,136.7143,102.51,102.42,38.85353997]
[1769993350492,136.7143,102.51,102.43,30.05813997]
[1769993350493,136.7153,102.5,102.43,30.05813997]
[1769993350691,136.7153,102.5,102.4,30.05813997]
[1769993350897,8.7897,102.49,102.41,38.85443997]
[1769993351097,8.7897,102.49,102.42,30.05813997]
[1769993351596,8.7911,102.48,102.4,38.85473997]
[1769993351897,136.7304,102.49,102.4,38.85473997]
[1769993352092,8.7916,102.47,102.4,30.05813997]
[1769993352294,136.7453,102.48,102.37,9.91575513]
[1769993352295,136.7697,102.46,102.37,30.05733226]
[1769993352498,316.6097,102.46,102.37,30.05733226]
[1769993352795,8.794,102.44,102.37,38.85653226]
[1769993352999,179.84,102.46,102.38,30.05733226]
[1769993353196,8.7929,102.46,102.39,38.85553226]
[1769993353395,374.4381,102.47,102.39,30.05733226]
[1769993354297,8.7932,102.45,102.39,30.05733226]
[1769993355300,8.7921,102.47,102.39,38.85543226]
[1769993355505,8.7921,102.47,102.4,30.01690144]
[1769993356205,238.22,102.48,102.4,30.01690144]
[1769993356206,8.7924,102.46,102.4,30.01690144]
[1769993356602,8.7931,102.45,102.4,30.01690144]
[1769993356902,8.7931,102.45,102.38,38.81375714]
[1769993357501,8.7939,102.44,102.38,30.01535714]
[1769993357805,183.5,102.46,102.38,30.01535714]
[1769993358199,8.7932,102.45,102.38,38.81435714]
[1769993359502,8.794,102.44,102.38,30.01535714]
[1769993360606,136.7825,102.45,102.38,30.01535714]
[1769993360808,8.7948,102.43,102.38,30.01535714]
[1769993361816,136.822,102.42,102.35,30.00201823]
[1769993362013,375.762,102.42,102.35,30.00201823]
[1769993362414,238.94,102.42,102.35,30.00201823]
[1769993362614,238.94,102.42,102.36,29.99633631]
[1769993363814,238.94,102.42,102.38,38.79523631]
[1769993364112,376.4299,102.46,102.38,38.79523631]
[1769993365016,239.66,102.46,102.39,38.78602248]
[1769993365916,136.7038,102.51,102.42,29.98802248]
[1769993366121,294.3438,102.51,102.42,29.98802248]
[1769993366421,8.7897,102.49,102.42,29.98802248]
[1769993366818,136.7344,102.49,102.39,39.87345173]
[1769993367015,136.7344,102.49,102.4,29.9576966]
[1769993367016,8.7923,102.46,102.4,29.9576966]
[1769993367321,377.429,102.46,102.37,29.9576966]
[1769993367520,136.7829,102.45,102.37,29.9576966]
[1769993367821,8.794,102.44,102.38,29.9576966]
[1769993368419,8.7949,102.43,102.35,38.69601553]
[1769993368618,136.8106,102.43,102.35,29.89511553]
[1769993369421,8.7964,102.42,102.35,29.89511553]
[1769993370020,8.7946,102.44,102.36,29.89511553]
[1769993371221,8.7948,102.43,102.37,38.70289188]
[1769993371425,136.785,102.45,102.38,29.90299188]
[1769993371824,136.7965,102.44,102.35,29.90299188]
[1769993372324,8.7958,102.42,102.35,38.70459188]
[1769993374025,136.7839,102.45,102.36,38.70539787]
[1769993374524,145.5903,102.44,102.36,38.70539787]
[1769993374723,8.7947,102.44,102.37,29.90481618]
[1769993375130,8.793,102.46,102.38,29.90481618]
[1769993375522,136.7692,102.46,102.38,29.90481618]
[1769993376026,136.8095,102.43,102.35,29.90481618]
[1769993376727,341.9634,102.42,102.32,29.91598083]
[1769993376929,341.9634,102.42,102.33,29.91598083]
[1769993377126,136.8234,102.42,102.33,29.91598083]
[1769993377422,240.82,102.42,102.34,38.71848083]
[1769993377625,377.6438,102.42,102.34,29.91598083]
[1769993377827,249.6165,102.42,102.34,38.71818083]
[1769993378025,377.6426,102.42,102.34,38.71818083]
[1769993378825,8.7965,102.41,102.34,38.71818083]
[1769993380024,240.82,102.42,102.36,29.92665654]
[1769993380731,249.6157,102.42,102.36,29.92665654]
[1769993381122,8.7957,102.42,102.36,29.92665654]
[1769993381326,8.7957,102.42,102.34,38.72835654]
[1769993381533,8.7966,102.41,102.34,38.72835654]
[1769993382436,8.7974,102.4,102.34,38.72835654]
[1769993382629,136.8394,102.41,102.34,29.92665654]
[1769993382930,8.7993,102.38,102.32,8.8039]
[1769993383125,252.25575513,102.42,102.32,29.92598374]
[1769993383325,242.5,102.42,102.33,29.92598374]
[1769993383531,8.7972,102.41,102.34,29.92598374]
[1769993384234,8.7972,102.41,102.34,38.72848374]
[1769993385030,136.8002,102.44,102.35,38.71473001]
[1769993385329,168.96,102.44,102.36,29.91333001]
[1769993385529,8.7949,102.43,102.36,29.91333001]
[1769993386235,8.7949,102.43,102.36,38.71413001]
[1769993386631,8.7963,102.42,102.36,29.91333001]
[1769993386934,168.96,102.44,102.36,29.91333001]
[1769993388437,8.7948,102.43,102.37,8.7998]
[1769993388931,8.7948,102.43,102.37,38.71227738]
[1769993390035,243.2,102.44,102.38,29.98704552]
[1769993390234,49.32,102.46,102.38,38.78604552]
[1769993390441,20.0,102.46,102.38,29.98704552]
[1769993391340,8.7922,102.46,102.39,29.98704552]
[1769993392039,8.7922,102.46,102.4,8.7972]
[1769993392634,8.7922,102.46,102.4,38.80652101]
[1769993394539,8.7912,102.48,102.41,38.87830883]
[1769993394943,363.929,102.49,102.41,38.87830883]
[1769993395344,244.48,102.48,102.41,38.87830883]
[1769993395840,244.48,102.48,102.41,30.08190883]
[1769993396234,8.7914,102.47,102.41,30.08190883]
[1769993396446,253.7114,102.47,102.41,30.08190883]
[1769993396939,381.6756,102.47,102.38,30.09057074]
[1769993397540,8.7934,102.45,102.38,38.88917074]
[1769993397942,8.7934,102.45,102.34,9.91575513]
[1769993397943,136.7836,102.45,102.35,30.09057074]
[1769993398141,382.1588,102.44,102.35,30.09057074]
[1769993398543,136.8102,102.43,102.35,38.89227074]
[1769993398937,8.7956,102.43,102.35,38.89227074]
[1769993399136,254.3156,102.43,102.36,38.86914614]
[1769993399341,245.52,102.43,102.37,30.06834614]
[1769993400349,136.7669,102.47,102.38,30.03240749]
[1769993400647,168.48,102.47,102.39,30.03240749]
[1769993400843,305.2356,102.47,102.39,30.03240749]
[1769993401044,136.7752,102.46,102.39,30.03240749]
[1769993401346,246.08,102.45,102.39,30.03240749]
[1769993401841,136.7484,102.48,102.39,30.03240749]
[1769993402043,181.66,102.48,102.4,30.03240749]
[1769993402845,318.4033,102.48,102.4,30.03240749]
[1769993403455,181.66,102.48,102.4,30.03240749]
[1769993404152,181.66,102.48,102.42,30.03243447]
[1769993404358,247.12,102.49,102.42,30.03243447]
[1769993404553,383.858,102.49,102.39,30.03243447]
[1769993404754,383.9677,102.48,102.39,30.03243447]
[1769993404958,8.7931,102.45,102.39,30.03243447]
[1769993405156,136.7697,102.46,102.39,30.03243447]
[1769993405954,39.23575513,102.47,102.36,30.03243447]
[1769993405955,8.7948,102.43,102.36,30.03243447]
[1769993406259,247.42,102.43,102.36,30.03243447]
[1769993406449,8.7959,102.42,102.36,38.83323447]
[1769993408756,8.7945,102.44,102.37,30.0369851]
[1769993408958,176.2145,102.44,102.37,30.0369851]
[1769993409260,136.8101,102.43,102.35,8.8017]
[1769993409463,304.2164,102.44,102.35,38.8386851]
[1769993410457,8.7956,102.42,102.35,38.8386851]
[1769993412362,248.48,102.43,102.36,8.8008]
[1769993413357,8.7952,102.43,102.37,30.03466828]
[1769993413660,248.86,102.43,102.37,30.03466828]
[1769993414255,385.6689,102.43,102.35,30.03605832]
[1769993415057,248.86,102.43,102.32,30.03605832]
[1769993415258,176.08170659,102.41,102.31,30.03605832]
[1769993416062,8.7982,102.39,102.32,38.84025832]
[1769993416666,136.8647,102.39,102.32,30.03605832]
[1769993416964,136.8777,102.38,102.29,30.06543497]
[1769993417160,146.78900659,102.39,102.3,38.87133497]
[1769993417355,176.78,102.38,102.3,38.87133497]
[1769993417659,176.78,102.38,102.32,30.06543497]
[1769993419467,185.5793,102.38,102.32,30.06543497]
[1769993419968,185.5793,102.38,102.32,38.86963497]
[1769993420164,176.78,102.38,102.33,29.978876]
[1769993420366,250.48,102.41,102.34,38.781276]
[1769993420964,136.8099,102.43,102.36,29.978876]
[1769993421164,250.74,102.42,102.36,29.978876]
[1769993422063,250.74,102.42,102.36,38.779276]
[1769993422263,193.3996,102.49,102.37,29.98491129]
[1769993422264,146.69010659,102.47,102.37,29.98491129]
[1769993422470,388.2893,102.46,102.37,29.98491129]
[1769993422967,136.7874,102.45,102.37,29.98491129]
[1769993423163,136.8116,102.43,102.35,29.98491129]
[1769993423468,8.7966,102.41,102.35,29.98491129]
[1769993423767,260.4366,102.41,102.35,29.98491129]
[1769993424164,260.4366,102.41,102.33,136.9315]
[1769993424165,388.4775,102.41,102.33,30.0006744]
[1769993424665,8.7983,102.39,102.33,30.0006744]
[1769993426569,8.7992,102.38,102.33,30.0006744]
[1769993427369,8.7992,102.38,102.32,29.99868767]
[1769993427666,136.8766,102.38,102.29,29.99868767]
[1769993428066,8.8008,102.36,102.31,29.97890078]
[1769993428271,252.02,102.38,102.31,29.97890078]
[1769993428861,136.8336,102.42,102.33,29.97890078]
[1769993429066,252.2,102.41,102.33,29.97890078]
[1769993429372,260.9965,102.41,102.34,29.97890078]
[1769993429670,252.2,102.41,102.34,29.97890078]
[1769993430467,146.68380659,102.47,102.37,29.98136387]
[1769993430672,136.7331,102.49,102.4,29.98136387]
[1769993430868,136.7022,102.51,102.41,29.98136387]
[1769993431168,136.7284,102.49,102.42,29.98136387]
[1769993431766,133.38,102.5,102.42,29.98136387]
[1769993432163,136.7156,102.5,102.42,29.98136387]
[1769993432368,311.8556,102.5,102.42,29.98136387]
[1769993432776,136.7156,102.5,102.42,29.98136387]
[1769993433069,311.8556,102.5,102.42,29.98136387]
[1769993433777,183.9292,102.5,102.42,38.77676387]
[1769993434074,8.7892,102.5,102.43,30.01123739]
[1769993434273,8.7881,102.51,102.43,38.80593739]
[1769993434469,160.2281,102.51,102.44,30.01123739]
[1769993434672,136.6844,102.53,102.44,30.01123739]
[1769993435068,136.6229,102.57,102.47,30.01123739]
[1769993435273,136.6484,102.55,102.47,30.01123739]
[1769993435468,136.663,102.54,102.44,30.01123739]
[1769993435671,136.663,102.54,102.45,8.7924]
[1769993435672,8.7865,102.53,102.45,8.7924]
[1769993435973,8.7865,102.53,102.45,38.80363739]
[1769993436269,8.7873,102.52,102.45,30.01123739]
[1769993437376,8.7882,102.51,102.43,38.7366482]
[1769993438074,136.6498,102.55,102.46,29.93119874]
[1769993438278,390.0956,102.56,102.46,29.93119874]
[1769993439483,8.785,102.55,102.47,29.93119874]
[1769993440280,8.7856,102.54,102.47,29.93119874]
[1769993441181,398.8797,102.56,102.47,29.93119874]
[1769993441377,253.14,102.55,102.47,29.93119874]
[1769993441785,253.14,102.55,102.47,38.72229874]
[1769993442173,253.14,102.55,102.48,30.09410387]
[1769993442573,136.5898,102.6,102.51,30.09410387]
[1769993442776,136.5294,102.64,102.54,30.09410387]
[1769993442976,136.5146,102.66,102.57,30.09410387]
[1769993443180,8.7778,102.63,102.54,166.75520387]
[1769993443383,8.7778,102.63,102.55,30.09410387]
[1769993443786,8.7822,102.58,102.48,136.7322]
[1769993443974,136.6362,102.56,102.49,30.09410387]
[1769993444173,146.54910659,102.57,102.49,30.09410387]
[1769993444377,8.784,102.56,102.49,30.09410387]
[1769993444977,8.7847,102.55,102.49,30.09410387]
[1769993445977,8.7855,102.54,102.45,29.87318561]
[1769993446884,136.6766,102.53,102.45,29.87318561]
[1769993447882,285.9366,102.53,102.45,29.87318561]
[1769993448280,8.7873,102.52,102.45,29.87318561]
[1769993448482,149.26,102.53,102.45,29.87318561]
[1769993449074,136.69,102.52,102.45,29.87318561]
[1769993450285,8.7882,102.51,102.45,29.87318561]
[1769993450486,136.7109,102.51,102.42,29.83883218]
[1769993450683,136.716,102.5,102.42,29.83883218]
[1769993450881,9.92570659,102.5,102.42,29.83883218]
[1769993451085,136.7323,102.49,102.42,29.83883218]
[1769993451281,136.7434,102.48,102.39,29.83883218]
[1769993451486,391.0361,102.47,102.39,29.83883218]
[1769993451689,145.562,102.46,102.39,29.83883218]
[1769993452086,8.7924,102.46,102.39,29.83883218]
[1769993452388,254.28,102.47,102.39,29.83883218]
[1769993452389,136.7554,102.47,102.39,29.83883218]
[1769993452582,264.54570659,102.48,102.39,29.83883218]
[1769993452782,401.28820659,102.48,102.39,29.83883218]
[1769993453078,145.5467,102.47,102.39,29.83883218]
[1769993453880,400.4867,102.47,102.39,29.83883218]
[1769993454889,8.7927,102.46,102.39,29.83883218]
[1769993455594,145.5809,102.45,102.37,378.98957258]
[1769993456090,145.5809,102.45,102.37,29.84960198]
[1769993456287,264.7737,102.45,102.37,29.84960198]
[1769993456589,401.5574,102.45,102.37,29.84960198]
[1769993457388,401.5574,102.45,102.36,8.8004]
[1769993457587,401.5574,102.45,102.36,38.64651491]
[1769993457888,264.7737,102.45,102.37,29.84611491]
[1769993458084,255.98,102.45,102.38,29.84611491]
[1769993458888,255.98,102.45,102.38,38.64491491]
[1769993459079,255.98,102.45,102.38,29.84611491]
[1769993459282,392.7626,102.45,102.38,29.84611491]
[1769993459481,8.795,102.43,102.35,29.85343131]
[1769993459684,255.98,102.45,102.36,29.85343131]
[1769993459884,392.762,102.45,102.36,29.85343131]
[1769993460388,394.397,102.44,102.36,29.85343131]
[1769993461186,8.795,102.43,102.36,29.85343131]
[1769993461685,160.74,102.44,102.36,29.85343131]
[1769993461686,160.74,102.44,102.37,29.85740853]
[1769993461886,146.65250659,102.5,102.4,29.85740853]
[1769993462086,8.7886,102.51,102.43,29.86523241]
[1769993462287,300.9035,102.51,102.43,29.86523241]
[1769993462487,136.7154,102.5,102.43,29.86523241]
[1769993462983,164.2,102.51,102.44,29.86523241]
[1769993463291,8.7851,102.55,102.47,38.65643241]
[1769993463485,136.6237,102.57,102.48,29.86523241]
[1769993463685,136.6638,102.54,102.45,29.86523241]
[1769993463885,142.08,102.56,102.48,29.86523241]
[1769993464683,8.7839,102.56,102.49,29.86420384]
[1769993464885,214.5084,102.58,102.49,29.86420384]
[1769993465092,136.589,102.6,102.51,29.86420384]
[1769993465395,373.809,102.6,102.51,29.86420384]
[1769993465590,237.22,102.6,102.52,29.86420384]
[1769993465795,146.49330659,102.62,102.53,29.86420384]
[1769993465796,258.64,102.61,102.53,29.86420384]
[1769993466191,8.7782,102.63,102.55,29.86936353]
[1769993466391,267.5382,102.63,102.55,29.86936353]
[1769993466791,258.76,102.63,102.56,29.86936353]
[1769993468088,8.7746,102.67,102.57,166.48254915]
[1769993468288,145.2633,102.67,102.58,38.65004915]
[1769993468493,136.18,102.66,102.58,38.65004915]
[1769993468686,136.18,102.66,102.59,166.46204915]
[1769993468885,562.9357,102.78,102.56,9.92570659]
[1769993468886,146.32830659,102.74,102.64,136.5277]
[1769993469086,146.30570659,102.76,102.65,166.37894915]
[1769993469393,146.30570659,102.76,102.65,29.86814915]
[1769993469394,138.8277,102.75,102.65,29.86814915]
[1769993469592,136.4133,102.73,102.63,29.86814915]
[1769993469892,245.4,102.72,102.63,166.40934915]
[1769993470096,136.4361,102.71,102.63,29.86814915]
[1769993470291,145.94,102.71,102.63,29.86814915]
[1769993470688,136.4892,102.67,102.6,30.08184838]
[1769993470896,259.32,102.67,102.6,30.08184838]
[1769993471296,259.44,102.66,102.6,30.08184838]
[1769993471792,259.62,102.66,102.6,30.08184838]
[1769993472393,155.15064772,102.67,102.58,30.0243687]
[1769993472593,146.6,102.66,102.58,30.0243687]
[1769993473298,405.2794,102.66,102.58,30.0243687]
[1769993473698,136.5175,102.65,102.58,30.0243687]
[1769993473998,145.2936,102.65,102.58,30.0243687]
[1769993474496,145.3077,102.64,102.55,30.00201771]
[1769993474801,397.1835,102.63,102.55,30.00201771]
[1769993475598,261.02,102.62,102.55,30.00201771]
[1769993475995,8.7777,102.63,102.55,30.00201771]
[1769993476300,143.7,102.62,102.55,30.00201771]
[1769993478392,289.0348,102.62,102.55,30.00201771]
[1769993479104,262.06,102.61,102.55,30.00201771]
[1769993479396,145.3181,102.64,102.55,30.00201771]
[1769993479601,262.18,102.63,102.55,30.00201771]
[1769993479800,398.7238,102.63,102.55,30.00201771]
[1769993480003,407.5018,102.63,102.55,30.00201771]
[1769993480196,270.958,102.63,102.55,30.00201771]
[1769993481297,263.08,102.62,102.55,30.00201771]
[1769993482499,8.7763,102.65,102.56,30.01112036]
[1769993482703,144.8363,102.65,102.57,30.01112036]
[1769993482901,281.354,102.65,102.57,30.01112036]
[1769993483101,281.354,102.65,102.55,30.01112036]
[1769993483102,145.311,102.64,102.55,30.01112036]
[1769993483299,136.5584,102.62,102.55,30.01112036]
[1769993483599,262.56,102.61,102.55,30.01112036]
[1769993484101,407.9087,102.61,102.52,38.78314824]
[1769993484305,271.3398,102.61,102.52,38.78314824]
[1769993484501,8.7798,102.61,102.52,38.78314824]
[1769993484702,161.58,102.6,102.53,29.99654824]
[1769993485203,8.7778,102.63,102.54,29.99654824]
[1769993485402,161.54,102.62,102.54,29.99654824]
[1769993485901,161.54,102.62,102.55,29.99654824]
[1769993486398,8.7764,102.65,102.56,30.03163258]
[1769993486604,144.6764,102.65,102.57,30.03163258]
[1769993487097,135.9,102.65,102.58,30.03163258]
[1769993488098,264.66,102.65,102.57,8.7823]
[1769993488398,136.5291,102.64,102.55,30.02921707]
[1769993488599,136.5645,102.62,102.52,30.02921707]
[1769993488903,264.8,102.61,102.53,30.02921707]
[1769993489400,136.583,102.6,102.53,30.02921707]
[1769993489597,401.423,102.6,102.53,30.02921707]
[1769993489999,8.7813,102.59,102.53,30.02921707]
[1769993490302,136.5958,102.59,102.5,38.83824611]
[1769993490502,162.86,102.58,102.5,38.83824611]
[1769993490805,171.6421,102.58,102.5,38.83824611]
[1769993491701,136.5404,102.64,102.54,30.04994611]
[1769993491900,156.9,102.63,102.54,30.04994611]
[1769993493202,136.5969,102.59,102.51,30.0550332]
[1769993493414,305.9169,102.59,102.51,30.0550332]
[1769993494201,136.5969,102.59,102.51,30.0550332]
[1769993494509,274.8023,102.58,102.51,30.0550332]
[1769993495201,266.02,102.58,102.51,38.8426332]
[1769993495504,266.46,102.59,102.51,38.8426332]
[1769993496098,266.46,102.59,102.52,38.85924188]
[1769993496303,266.46,102.59,102.52,30.07254188]
[1769993496706,8.7809,102.6,102.52,30.07254188]
[1769993496905,266.96,102.59,102.52,30.07254188]
[1769993497504,403.556,102.59,102.49,166.78864188]
[1769993497703,403.556,102.59,102.5,30.07460856]
[1769993498511,8.7822,102.58,102.5,38.86270856]
[1769993500201,276.2022,102.58,102.5,38.86270856]
[1769993500406,136.6234,102.57,102.46,136.7575]
[1769993500607,146.50654772,102.57,102.46,136.7575]
[1769993500807,136.6426,102.56,102.45,136.7813]
[1769993501406,404.0406,102.58,102.47,136.7549]
[1769993501611,267.76,102.57,102.47,136.7549]
[1769993501811,136.6365,102.56,102.45,136.7719]
[1769993502318,8.7846,102.55,102.48,8.7903]
[1769993502511,267.76,102.57,102.49,15.01240634]
[1769993503207,136.6212,102.58,102.49,15.01240634]
[1769993503412,46.859,102.61,102.49,15.01240634]
[1769993503413,177.76,102.57,102.5,15.01240634]
[1769993503608,136.594,102.6,102.51,15.01240634]
[1769993503814,8.7838,102.56,102.49,8.789]
[1769993504309,8.7827,102.58,102.5,23.7263297]
[1769993505019,8.7827,102.58,102.52,14.9376297]
[1769993507114,136.6226,102.57,102.49,14.93348703]
[1769993507514,136.6487,102.55,102.46,14.93348703]
[1769993507925,8.7872,102.52,102.46,14.93348703]
[1769993508336,273.725,102.54,102.46,14.93348703]
[1769993508623,8.7863,102.53,102.46,23.72558703]
[1769993509418,8.7851,102.55,102.48,14.9324066]
[1769993509930,8.7854,102.54,102.48,14.9324066]
[1769993510225,136.6641,102.54,102.46,8.7914]
[1769993510426,136.6641,102.54,102.46,23.72539728]
[1769993511232,136.6495,102.55,102.47,23.72529728]
[1769993511423,136.6617,102.54,102.47,14.93399728]
[1769993511826,8.7862,102.53,102.47,14.93399728]
[1769993512023,136.6617,102.54,102.47,14.93399728]
[1769993512432,8.7871,102.52,102.47,14.93399728]
[1769993515727,8.7871,102.52,102.45,8.793]
[1769993516031,8.7871,102.52,102.45,23.76400574]
[1769993516625,8.7857,102.54,102.47,14.97096682]
[1769993516829,268.66,102.56,102.47,14.97096682]
[1769993517224,8.7846,102.55,102.48,14.97096682]
[1769993520130,162.36314772,102.57,102.48,14.97096682]
[1769993520330,136.7311,102.49,102.39,136.8605]
[1769993520636,331.7511,102.49,102.39,136.8605]
[1769993520831,136.7562,102.47,102.37,512.60448312]
[1769993521226,405.3762,102.47,102.37,512.60448312]
[1769993521433,136.7828,102.45,102.36,8.8002]
[1769993522044,8.7951,102.43,102.33,136.9413]
[1769993522436,8.7951,102.43,102.34,7.60452643]
[1769993523239,8.7959,102.42,102.35,7.60452643]
[1769993525442,328.6497,102.44,102.35,7.60452643]
[1769993525647,319.8551,102.44,102.35,7.60452643]
[1769993526242,29.88314772,102.46,102.36,7.60007293]
[1769993526243,8.7951,102.43,102.36,7.60007293]
[1769993527347,414.4019,102.45,102.36,7.60007293]
[1769993529147,277.6136,102.45,102.37,7.87356435]
[1769993529340,269.52,102.46,102.38,7.87356435]
[1769993529846,8.7918,102.47,102.39,7.87356435]
[1769993530244,269.76,102.48,102.4,7.90137316]
[1769993530948,406.5028,102.48,102.4,7.90137316]
[1769993531547,8.7916,102.47,102.4,7.90137316]
[1769993532151,8.7924,102.46,102.4,7.90137316]
[1769993532650,8.7943,102.44,102.36,7.89811866]
[1769993532949,136.7963,102.44,102.36,7.89811866]
[1769993533150,8.7937,102.45,102.37,7.89811866]
[1769993533446,136.7952,102.44,102.37,7.89811866]
[1769993533950,136.7811,102.46,102.37,7.89811866]
[1769993534646,270.68,102.47,102.38,7.89210874]
[1769993534647,8.7937,102.45,102.38,7.89210874]
[1769993537147,8.7917,102.47,102.39,7.88798286]
[1769993537652,270.4,102.48,102.4,7.88798286]
[1769993537853,8.7906,102.48,102.4,16.68528286]
[1769993538651,8.7906,102.48,102.41,7.88822814]
[1769993539048,8.7914,102.47,102.41,7.88822814]
[1769993539245,136.7686,102.46,102.38,7.88822814]
[1769993539453,136.7887,102.45,102.38,7.88822814]
[1769993540251,270.56,102.46,102.38,7.88822814]
[1769993540752,8.7918,102.47,102.39,16.68669469]
[1769993540953,279.4918,102.47,102.4,7.88859469]
[1769993541153,8.7918,102.47,102.4,7.88859469]
[1769993541451,8.7918,102.47,102.4,16.68579469]
[1769993542145,8.7901,102.49,102.42,7.88859469]
[1769993542856,8.7906,102.48,102.4,7.85408202]
[1769993544456,8.7906,102.48,102.41,16.67150943]
[1769993544852,145.5086,102.5,102.42,16.67060943]
[1769993545158,136.7191,102.5,102.42,16.67060943]
[1769993545451,136.7191,102.5,102.37,167.82]
[1769993545452,136.7695,102.46,102.35,136.9037]
[1769993545655,136.7695,102.46,102.36,7.87510943]
[1769993545857,136.7965,102.44,102.36,7.87510943]
[1769993546651,8.7951,102.43,102.36,16.67560943]
[1769993546856,8.7951,102.43,102.37,7.87261737]
[1769993548354,279.2538,102.45,102.37,16.67251737]
[1769993548559,270.46,102.45,102.37,16.67251737]
[1769993549255,417.35007839,102.46,102.37,16.67251737]
[1769993549459,8.7939,102.44,102.37,16.67251737]
[1769993549756,280.57897839,102.46,102.37,7.87261737]
[1769993549961,8.7931,102.45,102.38,8.7989]
[1769993550365,165.5505,102.47,102.39,16.6546177]
[1769993550567,349.7784,102.47,102.39,16.6546177]
[1769993551363,146.68817839,102.46,102.37,8.7991]
[1769993551557,146.68817839,102.46,102.36,7.8565177]
[1769993551558,146.71427839,102.44,102.36,7.8565177]
[1769993551764,418.07427839,102.44,102.36,7.8565177]
[1769993553367,8.7957,102.42,102.36,7.8565177]
[1769993553560,418.07427839,102.44,102.36,7.8565177]
[1769993554771,8.7958,102.42,102.36,7.8565177]
[1769993556665,8.7958,102.42,102.33,136.94]
[1769993556666,8.7966,102.41,102.34,7.7889133]
[1769993557566,8.7966,102.41,102.31,7.7889133]
[1769993557567,136.8358,102.41,102.31,7.7889133]
[1769993558169,8.7991,102.38,102.31,16.5932133]
[1769993558363,409.864,102.39,102.31,7.7889133]
[1769993558562,136.8762,102.38,102.28,7.81002271]
[1769993558867,273.08,102.37,102.28,7.81002271]
[1769993559273,8.8009,102.36,102.28,16.61762271]
[1769993560863,8.8009,102.36,102.29,7.80355709]
[1769993562068,273.32,102.37,102.3,7.80355709]
[1769993562669,146.76547839,102.41,102.31,7.8202708]
[1769993562962,410.4098,102.4,102.31,7.8202708]
[1769993563162,273.6,102.41,102.32,7.8202708]
[1769993563367,8.7976,102.4,102.33,16.6234708]
[1769993565065,8.7976,102.4,102.3,144.8373306]
[1769993565066,8.7983,102.39,102.3,144.8373306]
[1769993565264,136.8629,102.39,102.3,7.8601306]
[1769993566071,8.7992,102.38,102.31,7.8601306]